bitfinex-derivatives/quotes_ETHF0:USTF0_20260121
["timestamp","ask_amount","ask_price","bid_price","bid_amount"]
[1769034903685,1.27922375,3023.1,3022.1,0.00297766]
[1769034903886,0.35737379,3023.0,3022.1,0.00297766]
[1769034904086,0.10567718,3023.2,3022.1,0.00297766]
[1769034904287,1.27921476,3023.1,3022.1,0.00297766]
[1769034904491,0.3573671,3023.0,3022.1,0.00297766]
[1769034904690,0.10567718,3023.2,3022.1,0.00297766]
[1769034904890,1.27907224,3023.1,3022.1,0.00297766]
[1769034905193,0.35733235,3023.0,3022.1,0.00297766]
[1769034905382,0.10567718,3023.2,3022.1,0.00297766]
[1769034905586,1.27894345,3023.1,3022.1,0.00297766]
[1769034905787,0.10567718,3023.2,3022.1,0.00297766]
[1769034905788,0.35729725,3023.0,3022.1,0.00297766]
[1769034905990,0.10567718,3023.2,3022.1,0.00297766]
[1769034906190,1.27894308,3023.1,3022.1,0.00297766]
[1769034906390,0.35729357,3023.0,3022.1,0.00297766]
[1769034906591,0.10567718,3023.2,3022.1,0.00297766]
[1769034906787,1.2788459,3023.1,3022.1,0.00297766]
[1769034906987,0.35727093,3023.0,3022.1,0.00297766]
[1769034907190,0.10567718,3023.2,3022.1,0.00297766]
[1769034907494,1.27882905,3023.1,3022.1,0.00297766]
[1769034907793,0.35726706,3023.0,3022.1,0.00297766]
[1769034907990,0.10567718,3023.2,3022.1,0.00297766]
[1769034908193,1.27876702,3023.1,3022.1,0.00297766]
[1769034908489,0.10567718,3023.2,3022.1,0.00297766]
[1769034908490,0.35724751,3023.0,3022.1,0.00297766]
[1769034908690,0.10567718,3023.2,3022.1,0.00297766]
[1769034908888,1.27870041,3023.1,3022.1,0.00297766]
[1769034909088,0.35723224,3023.0,3022.1,0.00297766]
[1769034909291,0.10567718,3023.2,3022.1,0.00297766]
[1769034909489,1.27829017,3023.1,3022.1,0.00297766]
[1769034909688,0.35711865,3023.0,3022.1,0.00297766]
[1769034909890,0.10567718,3023.2,3022.1,0.00297766]
[1769034910089,1.27828823,3023.1,3022.1,0.00297766]
[1769034910289,0.35711841,3023.0,3022.1,0.00297766]
[1769034910490,0.10567718,3023.2,3022.1,0.00297766]
[1769034910693,0.92110521,3023.1,3022.1,0.00297766]
[1769034910883,0.10567718,3023.2,3022.1,0.00297766]
[1769034911087,1.27803526,3023.1,3022.1,0.00297766]
[1769034911290,0.35704907,3023.0,3022.1,0.00297766]
[1769034911491,0.10567718,3023.2,3022.1,0.00297766]
[1769034911690,1.27801989,3023.1,3022.1,0.00297766]
[1769034911993,0.35704543,3023.0,3022.1,0.00297766]
[1769034912192,0.10567718,3023.2,3022.1,0.00297766]
[1769034912494,1.27799338,3023.1,3022.1,0.00297766]
[1769034912694,0.35703938,3023.0,3022.1,0.00297766]
[1769034912992,0.10567718,3023.2,3022.1,0.00297766]
[1769034913192,1.27798933,3023.1,3022.1,0.00297766]
[1769034913392,0.35703815,3023.0,3022.1,0.00297766]
[1769034913590,0.10567718,3023.2,3022.1,0.00297766]
[1769034913791,1.27778636,3023.1,3022.1,0.00297766]
[1769034913992,0.35698269,3023.0,3022.1,0.00297766]
[1769034914187,0.10567718,3023.2,3022.1,0.00297766]
[1769034914392,1.27768477,3023.1,3022.1,0.00297766]
[1769034914587,0.35697299,3023.0,3022.1,0.00297766]
[1769034914793,0.10567718,3023.2,3022.1,0.00297766]
[1769034914990,1.27705679,3023.1,3022.1,0.00297766]
[1769034915191,0.3567917,3023.0,3022.1,0.00297766]
[1769034915391,1.04309627,3023.2,3022.1,0.00297766]
[1769034915586,1.27703589,3023.1,3022.1,0.00297766]
[1769034915792,1.27702663,3023.0,3022.1,0.00297766]
[1769034915993,1.04092241,3023.5,3022.1,0.00297766]
[1769034916193,1.2770104,3023.4,3022.1,0.00297766]
[1769034916392,1.2770104,3023.3,3022.1,0.00297766]
[1769034916696,1.27703066,3023.2,3022.1,0.00297766]
[1769034916897,1.27703066,3023.1,3022.1,0.00297766]
[1769034917197,1.27703066,3023.0,3022.1,0.00297766]
[1769034917400,0.35678321,3022.9,3022.1,0.00297766]
[1769034917695,0.10343004,3023.4,3022.1,0.00297766]
[1769034917898,1.277072,3023.3,3022.1,0.00297766]
[1769034918199,1.277072,3023.2,3022.1,0.00297766]
[1769034918501,1.277072,3023.1,3022.1,0.00297766]
[1769034918693,1.277072,3023.0,3022.1,0.00297766]
[1769034918893,0.35678396,3022.9,3022.1,0.00297766]
[1769034919097,0.10343004,3023.4,3022.1,0.00297766]
[1769034919293,1.27724584,3023.3,3022.1,0.00297766]
[1769034919493,1.27724584,3023.2,3022.1,0.00297766]
[1769034919694,1.27724584,3023.1,3022.1,0.00297766]
[1769034919893,1.27724584,3023.0,3022.1,0.00297766]
[1769034920100,0.35682098,3022.9,3022.1,0.00297766]
[1769034920294,0.10343004,3023.4,3022.1,0.00297766]
[1769034920494,1.27736734,3023.3,3022.1,0.00297766]
[1769034920694,1.27736734,3023.2,3022.1,0.00297766]
[1769034920902,1.27736734,3023.1,3022.1,0.00297766]
[1769034921200,0.92051928,3023.0,3022.1,0.00297766]
[1769034921400,0.10343004,3023.4,3022.1,0.00297766]
[1769034921598,0.92059732,3023.3,3022.1,0.00297766]
[1769034921798,0.92059732,3023.2,3022.1,0.00297766]
[1769034922001,0.92059732,3023.1,3022.1,0.00297766]
[1769034922200,0.92059732,3023.0,3022.1,0.00297766]
[1769034922400,0.10343004,3023.4,3022.1,0.00297766]
[1769034922602,0.92070035,3023.3,3022.1,0.00297766]
[1769034922800,0.92070035,3023.2,3022.1,0.00297766]
[1769034923000,0.92070035,3023.1,3022.1,0.00297766]
[1769034923201,0.92070035,3023.0,3022.1,0.00297766]
[1769034923407,1.27764933,3022.9,3022.1,0.00297766]
[1769034923610,0.10343004,3023.4,3022.1,0.00297766]
[1769034923804,1.27777893,3023.3,3022.1,0.00297766]
[1769034924003,1.27777893,3023.2,3022.1,0.00297766]
[1769034924205,1.27777893,3023.1,3022.1,0.00297766]
[1769034924506,1.27777893,3023.0,3022.1,0.00297766]
[1769034924707,1.27777893,3022.9,3022.1,0.00297766]
[1769034924907,0.10343004,3023.4,3022.1,0.00297766]
[1769034925107,1.27793962,3023.3,3022.1,0.00297766]
[1769034925404,1.27793962,3023.2,3022.1,0.00297766]
[1769034925606,1.27793962,3023.1,3022.1,0.00297766]
[1769034925807,1.27793962,3023.0,3022.1,0.00297766]
[1769034926006,1.27793962,3022.9,3022.1,0.00297766]
[1769034926207,1.76627782,3023.5,3022.1,0.00297766]
[1769034926507,0.35713524,3023.4,3022.1,0.00297766]
[1769034926706,1.27846056,3023.3,3022.1,0.00297766]
[1769034926909,1.27846056,3023.2,3022.1,0.00297766]
[1769034927107,1.27846056,3023.1,3022.1,0.00297766]
[1769034927307,1.27846056,3023.0,3022.1,0.00297766]
[1769034927508,1.27846056,3022.9,3022.1,0.00297766]
[1769034927702,1.76627782,3023.5,3022.1,0.00297766]
[1769034927901,0.35726514,3023.4,3022.1,0.00297766]
[1769034928103,1.27682834,3023.3,3022.1,0.00297766]
[1769034928402,1.27682834,3023.2,3022.1,0.00297766]
[1769034928607,1.27682834,3023.1,3022.1,0.00297766]
[1769034928802,1.27682834,3023.0,3022.1,0.00297766]
[1769034929104,1.27684992,3022.9,3022.1,0.00297766]
[1769034929299,0.35728672,3022.8,3022.1,0.00297766]
[1769034929506,1.76627782,3023.5,3022.1,0.00297766]
[1769034929810,0.35719562,3023.4,3022.1,0.00297766]
[1769034930009,1.27667631,3023.3,3022.1,0.00297766]
[1769034930201,1.27667631,3023.2,3022.1,0.00297766]
[1769034930406,1.27667631,3023.1,3022.1,0.00297766]
[1769034930708,1.27667631,3023.0,3022.1,0.00297766]
[1769034930909,1.27667631,3022.9,3022.1,0.00297766]
[1769034931207,1.76627782,3023.5,3022.1,0.00297766]
[1769034931407,0.357178,3023.4,3022.1,0.00297766]
[1769034931612,1.27651642,3023.3,3022.1,0.00297766]
[1769034931813,1.27651642,3023.2,3022.1,0.00297766]
[1769034932110,1.27651642,3023.1,3022.1,0.00297766]
[1769034932311,1.27651642,3023.0,3022.1,0.00297766]
[1769034932513,1.27651642,3022.9,3022.1,0.00297766]
[1769034932713,0.357178,3022.8,3022.1,0.00297766]
[1769034932907,1.86778615,3023.5,3022.1,0.00297766]
[1769034933109,1.2766916,3023.4,3022.1,0.00297766]
[1769034933309,1.2766916,3023.3,3022.1,0.00297766]
[1769034933508,1.2766916,3023.2,3022.1,0.00297766]
[1769034933710,1.2766916,3023.1,3022.1,0.00297766]
[1769034933911,1.2766916,3023.0,3022.1,0.00297766]
[1769034934207,1.2766916,3022.9,3022.1,0.00297766]
[1769034934409,0.3572265,3022.8,3022.1,0.00297766]
[1769034934609,1.86778615,3023.5,3022.1,0.00297766]
[1769034934815,1.27670879,3023.4,3022.1,0.00297766]
[1769034935014,1.27670879,3023.3,3022.1,0.00297766]
[1769034935215,1.27670879,3023.2,3022.1,0.00297766]
[1769034935416,1.27670879,3023.1,3022.1,0.00297766]
[1769034935612,1.27670879,3023.0,3022.1,0.00297766]
[1769034935814,1.27670879,3022.9,3022.1,0.00297766]
[1769034936014,1.86778615,3023.5,3022.1,0.00297766]
[1769034936216,1.27670957,3023.4,3022.1,0.00297766]
[1769034936418,1.27670957,3023.3,3022.1,0.00297766]
[1769034936717,1.27670957,3023.2,3022.1,0.00297766]
[1769034937017,1.27670957,3023.1,3022.1,0.00297766]
[1769034937212,1.27670957,3023.0,3022.1,0.00297766]
[1769034937412,1.86778615,3023.5,3022.1,0.00297766]
[1769034937413,1.27670957,3022.9,3022.1,0.00297766]
[1769034937618,1.86778615,3023.5,3022.1,0.00297766]
[1769034937814,1.27721275,3023.4,3022.1,0.00297766]
[1769034938015,1.27721275,3023.3,3022.1,0.00297766]
[1769034938219,1.27721275,3023.2,3022.1,0.00297766]
[1769034938421,1.27721275,3023.1,3022.1,0.00297766]
[1769034938618,1.27721275,3023.0,3022.1,0.00297766]
[1769034938916,1.27721275,3022.9,3022.1,0.00297766]
[1769034939114,1.76627782,3023.5,3022.1,0.14288075]
[1769034939314,1.27782651,3023.4,3022.5,1.07732218]
[1769034939518,1.27782651,3023.3,3022.5,1.07732218]
[1769034939711,6.477,3023.7,3022.5,0.13990309]
[1769034939712,1.27782651,3023.2,3022.5,0.13990309]
[1769034939910,0.35754083,3023.1,3022.5,0.13990309]
[1769034940108,6.477,3023.7,3022.5,0.13990309]
[1769034940426,1.2775472,3023.6,3022.5,0.13990309]
[1769034940726,1.2775472,3023.5,3022.5,0.13990309]
[1769034940915,1.2775472,3023.4,3022.5,0.13990309]
[1769034941218,1.2775472,3023.3,3022.5,0.13990309]
[1769034941514,1.2775472,3023.2,3022.5,0.13990309]
[1769034941820,6.477,3023.7,3022.5,0.13990309]
[1769034942122,1.27699802,3023.6,3022.5,0.13990309]
[1769034942420,1.27699802,3023.5,3022.5,0.13990309]
[1769034942621,1.27699802,3023.4,3022.5,0.13990309]
[1769034942923,1.27699802,3023.3,3022.5,0.13990309]
[1769034943121,0.35730418,3023.2,3022.5,0.13990309]
[1769034943322,6.477,3023.7,3022.5,0.13990309]
[1769034943625,1.27671406,3023.6,3022.5,0.13990309]
[1769034943821,1.27671406,3023.5,3022.5,0.13990309]
[1769034944021,1.27671406,3023.4,3022.5,0.13990309]
[1769034944219,1.27671406,3023.3,3022.5,0.13990309]
[1769034944423,0.35722419,3023.2,3022.5,0.13990309]
[1769034944624,6.477,3023.7,3022.5,0.13990309]
[1769034944824,1.27437087,3023.6,3022.5,0.13990309]
[1769034945013,1.27437087,3023.5,3022.5,0.13990309]
[1769034945213,1.27437087,3023.4,3022.5,0.13990309]
[1769034945418,1.27437087,3023.3,3022.5,0.13990309]
[1769034945716,0.3572069,3023.2,3022.5,0.13990309]
[1769034945915,6.477,3023.7,3022.5,0.13990309]
[1769034946123,1.27427137,3023.6,3022.5,0.13990309]
[1769034946319,1.27427137,3023.5,3022.5,0.13990309]
[1769034946520,1.27427137,3023.4,3022.5,0.13990309]
[1769034946718,1.27427137,3023.3,3022.5,0.13990309]
[1769034947030,6.477,3023.7,3022.5,0.13990309]
[1769034947230,1.27350272,3023.6,3022.5,0.13990309]
[1769034947423,1.27350272,3023.5,3022.6,0.13990309]
[1769034947730,1.27350272,3023.4,3022.6,0.13990309]
[1769034947930,0.93741909,3023.8,3022.6,0.13990309]
[1769034948130,1.27276195,3023.7,3022.6,0.13990309]
[1769034948430,1.27276195,3023.6,3022.6,0.13990309]
[1769034948629,1.27276195,3023.5,3022.6,0.13990309]
[1769034948827,0.35717251,3023.4,3022.6,0.13990309]
[1769034949030,1.76627782,3024.0,3022.6,0.13990309]
[1769034949230,0.35713483,3023.9,3022.6,0.13990309]
[1769034949531,1.2726252,3023.8,3022.6,0.13990309]
[1769034949728,1.2726252,3023.7,3022.6,0.13990309]
[1769034949926,1.2726252,3023.6,3022.6,0.13990309]
[1769034950227,1.2726252,3023.5,3022.6,0.13990309]
[1769034950428,1.27248335,3023.4,3022.6,0.13990309]
[1769034950730,1.76627782,3024.0,3022.6,0.13990309]
[1769034950930,0.35708851,3023.9,3022.6,0.13990309]
[1769034951131,1.27244287,3023.8,3022.6,0.13990309]
[1769034951333,1.27244287,3023.7,3022.6,0.13990309]
[1769034951634,1.27244287,3023.6,3022.6,0.13990309]
[1769034951834,1.27244287,3023.5,3022.6,0.13990309]
[1769034952039,0.35708851,3023.4,3022.6,0.13990309]
[1769034952226,1.76627782,3024.0,3022.6,0.13990309]
[1769034952520,0.35697762,3023.9,3022.6,0.13990309]
[1769034952725,1.27205474,3023.8,3022.6,0.13990309]
[1769034952935,1.27205474,3023.7,3022.6,0.13990309]
[1769034953232,1.27205474,3023.6,3022.6,0.13990309]
[1769034953431,1.27205474,3023.5,3022.6,0.13990309]
[1769034953735,0.35697762,3023.4,3022.6,0.13990309]
[1769034953933,1.76627782,3024.0,3022.6,0.13990309]
[1769034954135,0.35696317,3023.9,3022.6,0.13990309]
[1769034954334,1.27200303,3023.8,3022.6,0.13990309]
[1769034954632,1.27200303,3023.7,3022.6,0.13990309]
[1769034954834,1.27200303,3023.6,3022.6,0.13990309]
[1769034955034,1.27200303,3023.5,3022.6,0.13990309]
[1769034955230,0.35696317,3023.4,3022.6,0.13990309]
[1769034955425,1.76627782,3024.0,3022.6,0.13990309]
[1769034955626,0.35699951,3023.9,3022.6,0.13990309]
[1769034955827,1.27213208,3023.8,3022.6,0.13990309]
[1769034956028,1.27213208,3023.7,3022.6,0.13990309]
[1769034956334,1.27213208,3023.6,3022.6,0.13990309]
[1769034956537,1.27213208,3023.5,3022.6,0.13990309]
[1769034956834,0.35699951,3023.4,3022.6,0.13990309]
[1769034957032,1.76627782,3024.0,3022.6,0.13990309]
[1769034957230,0.35700739,3023.9,3022.6,0.13990309]
[1769034957426,1.27186644,3023.8,3022.6,0.13990309]
[1769034957627,1.27186644,3023.7,3022.6,0.13990309]
[1769034957827,1.27186644,3023.6,3022.6,0.13990309]
[1769034958027,1.27186644,3023.5,3022.6,0.13990309]
[1769034958231,0.35700739,3023.4,3022.6,0.13990309]
[1769034958431,1.76627782,3024.0,3022.6,0.13990309]
[1769034958632,1.27116886,3023.9,3022.6,0.13990309]
[1769034958933,1.27116886,3023.8,3022.6,0.13990309]
[1769034959234,1.27116886,3023.7,3022.6,0.13990309]
[1769034959429,1.27116886,3023.6,3022.6,0.13990309]
[1769034959634,1.27116886,3023.5,3022.6,0.13990309]
[1769034959935,0.3570184,3023.4,3022.6,0.13990309]
[1769034960235,1.76627782,3024.0,3022.6,0.13990309]
[1769034960436,0.35707197,3023.9,3022.6,0.13990309]
[1769034960634,1.27139596,3023.8,3022.6,0.13990309]
[1769034960838,1.27139596,3023.7,3022.6,0.13990309]
[1769034961136,1.27139596,3023.6,3022.6,0.13990309]
[1769034961337,1.27139596,3023.5,3022.6,0.13990309]
[1769034961539,1.27139596,3023.4,3022.6,0.13990309]
[1769034961839,1.76627782,3024.0,3022.6,0.13990309]
[1769034962033,0.35710744,3023.9,3022.6,0.13990309]
[1769034962231,1.27148628,3023.8,3022.6,0.13990309]
[1769034962432,1.27148628,3023.7,3022.6,0.13990309]
[1769034962637,1.27148628,3023.6,3022.6,0.13990309]
[1769034962838,1.27148628,3023.5,3022.6,0.13990309]
[1769034963039,1.27148628,3023.4,3022.6,0.13990309]
[1769034963336,0.35716625,3023.3,3022.6,0.13990309]
[1769034963536,1.76627782,3024.0,3022.6,0.13990309]
[1769034963838,0.35716595,3023.9,3022.6,0.13990309]
[1769034964029,1.27169414,3023.8,3022.6,0.13990309]
[1769034964232,1.27169414,3023.7,3022.6,0.13990309]
[1769034964434,1.27169414,3023.6,3022.6,0.13990309]
[1769034964634,1.27169414,3023.5,3022.6,0.13990309]
[1769034964836,1.27169414,3023.4,3022.6,0.13990309]
[1769034965035,0.35716595,3023.3,3022.6,0.13990309]
[1769034965238,1.76627782,3024.0,3022.6,0.13990309]
[1769034965436,0.35716239,3023.9,3022.6,0.13990309]
[1769034965739,1.27179477,3023.8,3022.6,0.13990309]
[1769034965932,1.27179477,3023.7,3022.6,0.13990309]
[1769034966133,1.27179477,3023.6,3022.6,0.13990309]
[1769034966332,1.27179477,3023.5,3022.6,0.13990309]
[1769034966534,1.27179477,3023.4,3022.6,0.13990309]
[1769034966736,0.35716239,3023.3,3022.6,0.13990309]
[1769034966935,1.76627782,3024.0,3022.6,0.13990309]
[1769034967136,0.35724414,3023.9,3022.6,0.13990309]
[1769034967336,1.27197128,3023.8,3022.6,0.13990309]
[1769034967640,1.27197128,3023.7,3022.6,0.13990309]
[1769034967836,1.27197128,3023.6,3022.6,0.13990309]
[1769034968142,1.27197128,3023.5,3022.6,0.13990309]
[1769034968336,1.27197128,3023.4,3022.6,0.13990309]
[1769034968534,0.35724414,3023.3,3022.6,0.13990309]
[1769034968734,1.76627782,3023.9,3022.6,0.13990309]
[1769034969040,0.35742035,3023.8,3022.6,0.13990309]
[1769034969342,1.27259643,3023.7,3022.6,0.13990309]
[1769034969542,1.27259643,3023.6,3022.6,0.13990309]
[1769034969839,1.27259643,3023.5,3022.6,0.13990309]
[1769034970036,1.27259643,3023.4,3022.6,0.13990309]
[1769034970240,0.35742035,3023.3,3022.6,0.13990309]
[1769034970438,1.76627782,3024.0,3022.6,0.13990309]
[1769034970640,0.35747785,3023.9,3022.6,0.13990309]
[1769034970839,1.2728061,3023.8,3022.6,0.13990309]
[1769034971038,1.2728061,3023.7,3022.6,0.13990309]
[1769034971238,1.2728061,3023.6,3022.6,0.13990309]
[1769034971438,1.76627782,3023.9,3022.6,0.13990309]
[1769034971439,1.2728061,3023.5,3022.6,0.13990309]
[1769034971640,1.2728061,3023.4,3022.6,0.13990309]
[1769034971844,0.35747785,3023.3,3022.6,0.13990309]
[1769034972137,1.76627782,3023.9,3022.6,0.13990309]
[1769034972339,0.35750405,3023.8,3022.6,0.13990309]
[1769034972539,1.27289831,3023.7,3022.6,0.13990309]
[1769034972740,1.27289831,3023.6,3022.6,0.13990309]
[1769034972939,1.27289831,3023.5,3022.6,0.13990309]
[1769034973140,0.35750405,3023.4,3022.6,0.13990309]
[1769034973347,1.76627782,3024.1,3022.6,0.13990309]
[1769034973650,0.35753566,3024.0,3022.6,0.13990309]
[1769034973837,1.27301081,3023.9,3022.6,0.13990309]
[1769034974039,1.27300937,3023.8,3022.6,0.13990309]
[1769034974234,1.27300937,3023.7,3022.6,0.13990309]
[1769034974437,1.27300937,3023.6,3022.6,0.13990309]
[1769034974643,0.35753422,3023.5,3022.6,0.13990309]
[1769034974844,1.76880743,3024.2,3022.6,0.13990309]
[1769034975148,0.35748157,3024.1,3022.6,0.13990309]
[1769034975445,1.27282452,3024.0,3022.6,0.13990309]
[1769034975633,1.27282452,3023.9,3022.6,0.13990309]
[1769034975831,1.27282452,3023.8,3022.6,0.13990309]
[1769034976045,1.27282452,3023.7,3022.6,0.13990309]
[1769034976238,1.27282452,3023.6,3022.6,0.13990309]
[1769034976440,0.35748157,3023.5,3022.6,0.13990309]
[1769034976639,1.76880743,3024.2,3022.6,0.13990309]
[1769034976845,0.35742231,3024.1,3022.6,0.13990309]
[1769034977045,1.2726116,3024.0,3022.6,0.13990309]
[1769034977246,1.2726116,3023.9,3022.6,0.13990309]
[1769034977546,1.2726116,3023.8,3022.6,0.13990309]
[1769034977745,1.2726116,3023.7,3022.6,0.13990309]
[1769034977947,1.2726116,3023.6,3022.6,0.13990309]
[1769034978138,1.27253455,3023.5,3022.6,0.13990309]
[1769034978342,0.35740035,3023.4,3022.6,0.13990309]
[1769034978646,1.76627782,3024.1,3022.6,0.13990309]
[1769034978948,0.35739403,3024.0,3022.6,0.13990309]
[1769034979141,1.27250676,3023.9,3022.6,0.13990309]
[1769034979447,1.27250676,3023.8,3022.6,0.13990309]
[1769034979642,1.27250676,3023.7,3022.6,0.13990309]
[1769034979948,1.27250676,3023.6,3022.6,0.13990309]
[1769034980142,0.35739403,3023.5,3022.6,0.13990309]
[1769034980345,1.76880743,3024.2,3022.6,0.13990309]
[1769034980648,0.35737454,3024.1,3022.6,0.13990309]
[1769034980847,1.2724382,3024.0,3022.6,0.13990309]
[1769034981046,1.2724382,3023.9,3022.6,0.13990309]
[1769034981346,1.2724382,3023.8,3022.6,0.13990309]
[1769034981547,1.2724382,3023.7,3022.6,0.13990309]
[1769034981747,1.2724382,3023.6,3022.6,0.13990309]
[1769034981943,0.35737454,3023.5,3022.6,0.13990309]
[1769034982245,1.76880743,3024.2,3022.6,0.13990309]
[1769034982446,0.35735435,3024.1,3022.6,0.13990309]
[1769034982647,1.27236573,3024.0,3022.6,0.13990309]
[1769034982948,1.27236573,3023.9,3022.6,0.13990309]
[1769034983248,1.27236573,3023.8,3022.8,0.13991561]
[1769034983445,0.00252961,3024.2,3022.8,0.13991561]
[1769034983649,1.27289129,3024.1,3022.8,0.13991561]
[1769034983844,0.91538951,3024.0,3022.8,0.13991561]
[1769034984044,0.00252961,3024.2,3022.8,0.13991561]
[1769034984045,0.91538951,3023.9,3022.8,0.13991561]
[1769034984245,0.00252961,3024.2,3022.8,0.13991561]
[1769034984445,0.91433817,3024.1,3022.8,0.13991561]
[1769034984645,1.27185426,3024.0,3022.8,0.13991561]
[1769034984846,0.35751609,3023.9,3022.8,0.13991561]
[1769034985046,0.00252961,3024.2,3022.8,0.13991561]
[1769034985249,1.27176461,3024.1,3022.8,0.13991561]
[1769034985444,1.27176461,3024.0,3022.8,0.13991561]
[1769034985645,0.00252961,3024.2,3022.8,0.13991561]
[1769034985646,0.35742441,3023.9,3022.8,0.13991561]
[1769034985846,0.00252961,3024.2,3022.8,0.13991561]
[1769034986046,1.27159649,3024.1,3022.8,0.13991561]
[1769034986252,1.27153958,3024.0,3022.8,0.13991561]
[1769034986552,0.35731468,3023.9,3022.8,0.13991561]
[1769034986855,0.00252961,3024.2,3022.8,0.13991561]
[1769034987149,1.26813769,3024.1,3022.8,0.13991561]
[1769034987350,1.26813769,3024.0,3022.8,0.13991561]
[1769034987553,0.35731538,3023.9,3022.8,0.13991561]
[1769034987746,0.00252961,3024.2,3022.8,0.13991561]
[1769034987943,1.26821282,3024.1,3022.8,0.13991561]
[1769034988148,1.26821282,3024.0,3022.8,0.13991561]
[1769034988351,0.00252961,3024.2,3022.8,0.13991561]
[1769034988549,1.26814733,3024.1,3022.8,0.13991561]
[1769034988749,1.26814733,3024.0,3022.8,0.13991561]
[1769034988953,0.35732349,3023.9,3022.8,0.13991561]
[1769034989154,0.00252961,3024.2,3022.8,0.13991561]
[1769034989349,1.26820631,3024.1,3022.8,0.13991561]
[1769034989543,0.35733609,3024.0,3022.8,0.13991561]
[1769034989751,0.00252961,3024.2,3022.8,0.13991561]
[1769034989950,1.26819761,3024.1,3022.8,0.13991561]
[1769034990149,0.35733351,3024.0,3022.8,0.13991561]
[1769034990350,0.00252961,3024.2,3022.8,0.13991561]
[1769034990550,1.26809373,3024.1,3022.8,0.13991561]
[1769034990751,0.35730512,3024.0,3022.8,0.13991561]
[1769034990958,0.00252961,3024.2,3022.8,0.13991561]
[1769034991255,1.26809545,3024.1,3022.8,0.13991561]
[1769034991556,0.3573056,3024.0,3022.8,0.13991561]
[1769034991853,0.00252961,3024.2,3022.8,0.13991561]
[1769034992053,1.26801181,3024.1,3022.8,0.13991561]
[1769034992253,0.35728266,3024.0,3022.8,0.13991561]
[1769034992453,0.00252961,3024.2,3022.8,0.13991561]
[1769034992753,1.26803812,3024.1,3022.8,0.13991561]
[1769034992944,0.35729033,3024.0,3022.8,0.13991561]
[1769034993142,0.00252961,3024.2,3022.8,0.13991561]
[1769034993350,1.26806489,3024.1,3022.8,0.13991561]
[1769034993658,0.35730497,3024.0,3022.8,0.13991561]
[1769034993860,0.00252961,3024.2,3022.8,0.13991561]
[1769034994052,1.26805916,3024.1,3022.8,0.13991561]
[1769034994254,0.35729702,3024.0,3022.8,0.13991561]
[1769034994458,0.00252961,3024.2,3022.8,0.13991561]
[1769034994660,1.26806506,3024.1,3022.8,0.13991561]
[1769034994957,0.00252961,3024.2,3022.8,0.13991561]
[1769034995151,1.26806506,3024.1,3022.8,0.13991561]
[1769034995347,0.35729892,3024.0,3022.8,0.13991561]
[1769034995553,0.00252961,3024.2,3022.8,0.13991561]
[1769034995757,1.26807499,3024.1,3022.8,0.13991561]
[1769034995958,0.35730211,3024.0,3022.8,0.13991561]
[1769034996153,0.00252961,3024.2,3022.8,0.13991561]
[1769034996457,1.26810832,3024.1,3022.8,0.13991561]
[1769034996756,0.35731185,3024.0,3022.8,0.13991561]
[1769034996950,0.00252961,3024.2,3022.8,0.13991561]
[1769034997151,1.26872215,3024.1,3022.8,0.13991561]
[1769034997355,0.35748481,3024.0,3022.8,0.13991561]
[1769034997555,0.00252961,3024.2,3022.8,0.13991561]
[1769034997755,1.26887485,3024.1,3022.8,0.13991561]
[1769034997956,0.35752815,3024.0,3022.8,0.13991561]
[1769034998156,0.00252961,3024.2,3022.8,0.13991561]
[1769034998455,1.26908135,3024.1,3022.8,0.13991561]
[1769034998661,0.35758661,3024.0,3022.8,0.13991561]
[1769034998959,0.00252961,3024.2,3022.8,0.13991561]
[1769034999158,1.26834215,3024.1,3022.8,0.13991561]
[1769034999356,0.35758514,3024.0,3022.8,0.13991561]
[1769034999657,0.00252961,3024.2,3022.8,0.13991561]
[1769034999858,1.26845392,3024.1,3022.8,0.13991561]
[1769035000056,0.35761691,3024.0,3022.8,0.13991561]
[1769035000257,0.00252961,3024.2,3022.8,0.13991561]
[1769035000458,1.2685121,3024.1,3022.8,0.13991561]
[1769035000651,0.35763329,3024.0,3022.8,0.13991561]
[1769035000851,0.00252961,3024.2,3022.8,0.13991561]
[1769035001152,1.26850391,3024.1,3022.8,0.13991561]
[1769035001354,1.26850391,3024.0,3022.8,0.13991561]
[1769035001556,0.35763336,3023.9,3022.8,0.13991561]
[1769035001851,0.00252961,3024.2,3022.8,0.13991561]
[1769035002053,1.2686353,3024.1,3022.8,0.13991561]
[1769035002253,1.2686353,3024.0,3022.8,0.13991561]
[1769035002457,0.35766856,3023.9,3022.8,0.13991561]
[1769035002659,0.00252961,3024.2,3022.8,0.13991561]
[1769035002850,1.26881177,3024.1,3022.8,0.13991561]
[1769035003049,1.26881177,3024.0,3022.8,0.13991561]
[1769035003260,0.35771854,3023.9,3022.8,0.13991561]
[1769035003463,0.00252961,3024.2,3022.8,0.13991561]
[1769035003658,1.26893062,3024.1,3022.8,0.13991561]
[1769035003958,1.26893062,3024.0,3022.8,0.13991561]
[1769035004161,0.35775232,3023.9,3022.8,0.13991561]
[1769035004360,0.00252961,3024.2,3022.8,0.13991561]
[1769035004562,1.26897599,3024.1,3022.8,0.13991561]
[1769035004860,1.26897602,3024.0,3022.8,0.13991561]
[1769035005062,0.3577648,3023.9,3022.8,0.13991561]
[1769035005260,0.00252961,3024.2,3022.8,0.13991561]
[1769035005562,1.26908364,3024.1,3022.8,0.13991561]
[1769035005756,1.26908364,3024.0,3022.8,0.13991561]
[1769035006056,0.35779534,3023.9,3022.8,0.13991561]
[1769035006256,0.00252961,3024.2,3022.8,0.13991561]
[1769035006459,1.26914443,3024.1,3022.8,0.13991561]
[1769035006660,1.26914443,3024.0,3022.8,0.13991561]
[1769035006861,0.35781225,3023.9,3022.8,0.13991561]
[1769035007158,0.00252961,3024.2,3022.8,0.13991561]
[1769035007359,1.26921766,3024.1,3022.8,0.13991561]
[1769035007559,1.26921766,3024.0,3022.8,0.13991561]
[1769035007759,0.35783327,3023.9,3022.8,0.13991561]
[1769035008056,0.00252961,3024.2,3022.8,0.13991561]
[1769035008262,1.26934926,3024.1,3022.8,0.13991561]
[1769035008455,1.26934926,3024.0,3022.8,0.13991561]
[1769035008761,0.35783368,3023.9,3022.8,0.13991561]
[1769035008952,0.00252961,3024.2,3022.8,0.13991561]
[1769035009156,1.26940018,3024.1,3022.8,0.13991561]
[1769035009455,1.26940018,3024.0,3022.8,0.13991561]
[1769035009661,0.3578874,3023.9,3022.8,0.13991561]
[1769035009862,0.00252961,3024.2,3022.8,0.13991561]
[1769035010160,1.26943603,3024.1,3022.8,0.13991561]
[1769035010361,1.26943603,3024.0,3022.8,0.13991561]
[1769035010564,0.35789797,3023.9,3022.8,0.13991561]
[1769035010756,0.00252961,3024.2,3022.8,0.13991561]
[1769035011065,1.26961331,3024.1,3023.0,0.93708914]
[1769035011361,1.26961331,3024.0,3023.0,0.93708914]
[1769035011555,0.3579481,3023.9,3023.0,0.93708914]
[1769035011757,0.3579481,3023.8,3023.0,0.93708914]
[1769035012060,0.00252961,3024.2,3023.3,0.93708914]
[1769035012263,1.270098,3024.1,3023.1,0.14334668]
[1769035012463,0.35804206,3024.0,3023.1,0.14334668]
[1769035012662,0.00252961,3024.2,3023.1,0.14334668]